[Event "*** SCC Grand Prix: Titled Tuesday Blitz"]
[Site "Chess.com"]
[Date "2020.07.14"]
[Round "7"]
[White "WIDBIFS"]
[Black "ellatambien"]
[Result "1-0"]
[WhiteElo "2743"]
[BlackElo "2550"]
[TimeControl "180+1"]
[EndTime "11:19:49 PDT"]
[Termination "WIDBIFS won by checkmate"]

1. d4 {[%clk 0:03:00.9]} 1... Nf6 {[%clk 0:02:58.1]} 2. Nf3 {[%clk 0:03:01]}
2... e6 {[%clk 0:02:57]} 3. Bf4 {[%clk 0:03:01.4]} 3... c5 {[%clk 0:02:49.6]} 4.
e3 {[%clk 0:03:01.6]} 4... b6 {[%clk 0:02:48.8]} 5. Nbd2 {[%clk 0:03:02.2]} 5...
Bb7 {[%clk 0:02:48.2]} 6. c3 {[%clk 0:03:02.8]} 6... Be7 {[%clk 0:02:45.3]} 7.
h3 {[%clk 0:03:03]} 7... cxd4 {[%clk 0:02:42]} 8. exd4 {[%clk 0:03:03]} 8... d6
{[%clk 0:02:41.1]} 9. Bd3 {[%clk 0:03:01.9]} 9... Nbd7 {[%clk 0:02:40]} 10. Qe2
{[%clk 0:03:02]} 10... a6 {[%clk 0:02:39.1]} 11. a4 {[%clk 0:02:59.3]} 11... Qc7
{[%clk 0:02:36]} 12. Bh2 {[%clk 0:02:58]} 12... O-O {[%clk 0:02:29.5]} 13. O-O
{[%clk 0:02:56.7]} 13... Rfe8 {[%clk 0:02:28.9]} 14. Rfe1 {[%clk 0:02:56.8]}
14... Bf8 {[%clk 0:02:27.4]} 15. Nc4 {[%clk 0:02:46.6]} 15... Bc6 {[%clk
0:02:17.5]} 16. Ne3 {[%clk 0:02:45.6]} 16... Qb7 {[%clk 0:02:14.6]} 17. Ng4
{[%clk 0:02:36.4]} 17... Bxf3 {[%clk 0:01:58]} 18. gxf3 {[%clk 0:02:33.4]} 18...
g6 {[%clk 0:01:55.9]} 19. Kh1 {[%clk 0:02:21.5]} 19... Nh5 {[%clk 0:01:38.6]}
20. Rg1 {[%clk 0:02:17.5]} 20... Kh8 {[%clk 0:01:35.5]} 21. Rg2 {[%clk 0:02:15]}
21... f5 {[%clk 0:01:23.9]} 22. Ne3 {[%clk 0:02:13]} 22... Bh6 {[%clk
0:01:02.6]} 23. Nc4 {[%clk 0:01:32.8]} 23... Bf4 {[%clk 0:00:27.4]} 24. Nxd6
{[%clk 0:01:27.5]} 24... Bxd6 {[%clk 0:00:25.1]} 25. Bxd6 {[%clk 0:01:28.4]}
25... e5 {[%clk 0:00:24.7]} 26. dxe5 {[%clk 0:00:58.5]} 26... Nf4 {[%clk
0:00:23]} 27. Qe3 {[%clk 0:00:51.8]} 27... Nxg2 {[%clk 0:00:22]} 28. Kxg2 {[%clk
0:00:47.7]} 28... Qd5 {[%clk 0:00:21]} 29. Re1 {[%clk 0:00:42.5]} 29... Nf6
{[%clk 0:00:17.4]} 30. Kh2 {[%clk 0:00:34]} 30... Nh5 {[%clk 0:00:16.2]} 31. f4
{[%clk 0:00:28.2]} 31... Qb3 {[%clk 0:00:14]} 32. Be2 {[%clk 0:00:26.1]} 32...
Qxa4 {[%clk 0:00:12.2]} 33. Bxh5 {[%clk 0:00:19.9]} 33... gxh5 {[%clk
0:00:13.1]} 34. e6 {[%clk 0:00:13.9]} 34... Qe4 {[%clk 0:00:11.4]} 35. Be5+
{[%clk 0:00:14.2]} 35... Kg8 {[%clk 0:00:11]} 36. Qg3+ {[%clk 0:00:14.5]} 36...
Kf8 {[%clk 0:00:11.1]} 37. Qg7# {[%clk 0:00:15]} 1-0

[Event "*** SCC Grand Prix: Titled Tuesday Blitz"]
[Site "Chess.com"]
[Date "2020.07.14"]
[Round "7"]
[White "Oleksandr_Bortnyk"]
[Black "nrvisakh"]
[Result "1-0"]
[WhiteElo "2937"]
[BlackElo "2776"]
[TimeControl "180+1"]
[EndTime "11:19:50 PDT"]
[Termination "Oleksandr_Bortnyk won by resignation"]

1. e4 {[%clk 0:03:00.9]} 1... c6 {[%clk 0:02:58.7]} 2. c4 {[%clk 0:03:00.3]}
2... d5 {[%clk 0:02:47.6]} 3. cxd5 {[%clk 0:03:01.2]} 3... cxd5 {[%clk
0:02:47.6]} 4. exd5 {[%clk 0:03:01.7]} 4... Nf6 {[%clk 0:02:44]} 5. Qa4+ {[%clk
0:03:01.8]} 5... Bd7 {[%clk 0:02:43.3]} 6. Qb3 {[%clk 0:03:01.2]} 6... Qb6
{[%clk 0:02:38.6]} 7. Bc4 {[%clk 0:02:43.1]} 7... Na6 {[%clk 0:02:33.6]} 8. Nc3
{[%clk 0:02:42.3]} 8... Qxb3 {[%clk 0:02:28.7]} 9. axb3 {[%clk 0:02:39.8]} 9...
Nb4 {[%clk 0:02:28.5]} 10. Kd1 {[%clk 0:02:36.4]} 10... a5 {[%clk 0:02:25.5]}
11. Nf3 {[%clk 0:02:32.2]} 11... g6 {[%clk 0:02:22.1]} 12. d4 {[%clk 0:02:28.9]}
12... Bg7 {[%clk 0:02:17.4]} 13. Re1 {[%clk 0:02:29.1]} 13... Bg4 {[%clk
0:02:10.1]} 14. Bg5 {[%clk 0:02:23.8]} 14... h6 {[%clk 0:02:08.7]} 15. Bh4
{[%clk 0:02:23.9]} 15... g5 {[%clk 0:02:05.9]} 16. Bg3 {[%clk 0:02:24]} 16...
O-O {[%clk 0:01:55.8]} 17. Rxe7 {[%clk 0:02:22.7]} 17... b5 {[%clk 0:01:55.9]}
18. Nxb5 {[%clk 0:02:07.4]} 18... Nfxd5 {[%clk 0:01:53.5]} 19. Re2 {[%clk
0:02:06.1]} 19... Rfd8 {[%clk 0:01:48.6]} 20. h3 {[%clk 0:02:03.7]} 20... Bh5
{[%clk 0:01:47.8]} 21. Ke1 {[%clk 0:02:00]} 21... Rd7 {[%clk 0:01:35.8]} 22. Kf1
{[%clk 0:01:56.9]} 22... Nb6 {[%clk 0:01:26.9]} 23. Rd2 {[%clk 0:01:52.3]} 23...
N4d5 {[%clk 0:01:21.6]} 24. Ne5 {[%clk 0:01:50.4]} 24... Bxe5 {[%clk 0:01:13.5]}
25. Bxe5 {[%clk 0:01:50.4]} 25... Re8 {[%clk 0:01:06.5]} 26. Rxa5 {[%clk
0:01:48.1]} 26... Nxc4 {[%clk 0:01:04]} 27. bxc4 {[%clk 0:01:47.9]} 27... Nb6
{[%clk 0:01:04.9]} 28. Na3 {[%clk 0:01:33.8]} 28... Rde7 {[%clk 0:00:57.2]} 29.
g4 {[%clk 0:01:33]} 29... Bg6 {[%clk 0:00:55.6]} 30. Kg2 {[%clk 0:01:10.6]}
30... f6 {[%clk 0:00:52.6]} 31. Bxf6 {[%clk 0:01:09.2]} 31... Rf7 {[%clk
0:00:52.8]} 32. Be5 {[%clk 0:01:07.3]} 32... Be4+ {[%clk 0:00:51.5]} 33. Kg1
{[%clk 0:01:04.5]} 33... Bf3 {[%clk 0:00:47.3]} 34. Rd3 {[%clk 0:00:57.3]} 34...
Nd7 {[%clk 0:00:40]} 35. Re3 {[%clk 0:00:56.6]} 35... Rc8 {[%clk 0:00:26.4]} 36.
b3 {[%clk 0:00:46.6]} 36... Re8 {[%clk 0:00:22.4]} 37. Nb5 {[%clk 0:00:45.9]}
37... Nxe5 {[%clk 0:00:21.4]} 38. Rxe5 {[%clk 0:00:46.8]} 38... Rxe5 {[%clk
0:00:20.1]} 39. dxe5 {[%clk 0:00:47.7]} 39... Rf4 {[%clk 0:00:20.2]} 40. Nd6
{[%clk 0:00:43.1]} 40... Rd4 {[%clk 0:00:19.9]} 41. Ra1 {[%clk 0:00:43.3]} 41...
Kf8 {[%clk 0:00:17.4]} 42. b4 {[%clk 0:00:39.4]} 42... Rd2 {[%clk 0:00:17.1]}
43. b5 {[%clk 0:00:35.2]} 43... Ke7 {[%clk 0:00:17.3]} 44. b6 {[%clk 0:00:34.3]}
44... Ke6 {[%clk 0:00:17.3]} 45. Re1 {[%clk 0:00:34.4]} 45... Rb2 {[%clk
0:00:16]} 46. c5 {[%clk 0:00:34.8]} 46... Rb5 {[%clk 0:00:15.8]} 47. Nxb5 {[%clk
0:00:33.6]} 1-0

[Event "*** SCC Grand Prix: Titled Tuesday Blitz"]
[Site "Chess.com"]
[Date "2020.07.14"]
[Round "7"]
[White "Harry_Rakkel"]
[Black "LuckSlayeer"]
[Result "1-0"]
[WhiteElo "2566"]
[BlackElo "2398"]
[TimeControl "180+1"]
[EndTime "11:19:50 PDT"]
[Termination "Harry_Rakkel won on time"]

1. e4 {[%clk 0:03:00.9]} 1... c5 {[%clk 0:02:58.9]} 2. Nf3 {[%clk 0:02:59.6]}
2... Nc6 {[%clk 0:02:59.2]} 3. d4 {[%clk 0:02:59.1]} 3... cxd4 {[%clk
0:02:59.5]} 4. Nxd4 {[%clk 0:02:59.5]} 4... e5 {[%clk 0:03:00.2]} 5. Nb5 {[%clk
0:02:57.9]} 5... d6 {[%clk 0:03:00.6]} 6. N1c3 {[%clk 0:02:56.9]} 6... a6 {[%clk
0:03:00.5]} 7. Na3 {[%clk 0:02:56.6]} 7... b5 {[%clk 0:03:01.2]} 8. Nd5 {[%clk
0:02:55.9]} 8... Nce7 {[%clk 0:03:01.6]} 9. c4 {[%clk 0:02:54.1]} 9... Nxd5
{[%clk 0:03:02]} 10. exd5 {[%clk 0:02:50.4]} 10... f5 {[%clk 0:03:02.3]} 11.
cxb5 {[%clk 0:02:47.6]} 11... Nf6 {[%clk 0:03:02.7]} 12. bxa6 {[%clk 0:02:42.2]}
12... Be7 {[%clk 0:03:03.1]} 13. Bb5+ {[%clk 0:02:38.5]} 13... Kf7 {[%clk
0:03:03.5]} 14. O-O {[%clk 0:02:35.3]} 14... Rf8 {[%clk 0:03:03.6]} 15. Nc2
{[%clk 0:02:30.2]} 15... Kg8 {[%clk 0:03:03.4]} 16. Nb4 {[%clk 0:02:28.7]} 16...
Qb6 {[%clk 0:02:35.8]} 17. a4 {[%clk 0:02:25.5]} 17... f4 {[%clk 0:02:28.2]} 18.
Nc6 {[%clk 0:02:18]} 18... Bd8 {[%clk 0:02:17.8]} 19. Bd2 {[%clk 0:02:16.6]}
19... Bg4 {[%clk 0:02:01.5]} 20. Qb1 {[%clk 0:01:53.1]} 20... f3 {[%clk
0:01:39.5]} 21. Ba5 {[%clk 0:01:43]} 21... Qc5 {[%clk 0:01:38.6]} 22. Rc1 {[%clk
0:01:31.2]} 22... Bxa5 {[%clk 0:01:05.8]} 23. Rxc5 {[%clk 0:01:29.6]} 23... Bb6
{[%clk 0:01:06.4]} 24. Rc2 {[%clk 0:01:17.5]} 24... fxg2 {[%clk 0:00:56.4]} 25.
a5 {[%clk 0:01:16.7]} 25... Bc5 {[%clk 0:00:45.9]} 26. b4 {[%clk 0:01:15.7]}
26... Bd4 {[%clk 0:00:32.3]} 27. Ra3 {[%clk 0:01:06.4]} 27... Ne4 {[%clk
0:00:23.2]} 28. Nxd4 {[%clk 0:01:01.3]} 28... exd4 {[%clk 0:00:24.1]} 29. Qe1
{[%clk 0:00:53.7]} 29... Ng5 {[%clk 0:00:15.3]} 30. Kxg2 {[%clk 0:00:48.4]}
30... Bf3+ {[%clk 0:00:13.1]} 31. Rxf3 {[%clk 0:00:46.6]} 31... Nxf3 {[%clk
0:00:14]} 32. Qe6+ {[%clk 0:00:44.2]} 32... Kh8 {[%clk 0:00:14.3]} 33. Rc7
{[%clk 0:00:40.2]} 33... Nh4+ {[%clk 0:00:09.6]} 34. Kf1 {[%clk 0:00:39.5]}
34... h6 {[%clk 0:00:04.5]} 35. Qxd6 {[%clk 0:00:35.9]} 35... Nf5 {[%clk
0:00:02.5]} 36. Qd7 {[%clk 0:00:31.5]} 36... Rad8 {[%clk 0:00:02.4]} 37. Qxd8
{[%clk 0:00:29.4]} 37... Rxd8 {[%clk 0:00:02.2]} 38. a7 {[%clk 0:00:30]} 38...
Nd6 {[%clk 0:00:02]} 39. Bc6 {[%clk 0:00:27.9]} 39... Ne8 {[%clk 0:00:01.8]} 40.
Re7 {[%clk 0:00:26.6]} 1-0

[Event "*** SCC Grand Prix: Titled Tuesday Blitz"]
[Site "Chess.com"]
[Date "2020.07.14"]
[Round "7"]
[White "harlem4brew"]
[Black "pfalcon1949"]
[Result "1-0"]
[WhiteElo "2101"]
[BlackElo "2051"]
[TimeControl "180+1"]
[EndTime "11:19:50 PDT"]
[Termination "harlem4brew won by checkmate"]

1. e4 {[%clk 0:03:00.9]} 1... e6 {[%clk 0:02:59.4]} 2. d4 {[%clk 0:02:58.8]}
2... d5 {[%clk 0:02:59.5]} 3. Nc3 {[%clk 0:02:57.1]} 3... Bb4 {[%clk 0:02:59.5]}
4. Bf4 {[%clk 0:02:55.5]} 4... dxe4 {[%clk 0:02:56.9]} 5. a3 {[%clk 0:02:53.8]}
5... Bxc3+ {[%clk 0:02:56]} 6. bxc3 {[%clk 0:02:53.5]} 6... Nf6 {[%clk
0:02:56.5]} 7. Ne2 {[%clk 0:02:52.8]} 7... O-O {[%clk 0:02:56.1]} 8. Ng3 {[%clk
0:02:49.1]} 8... Bd7 {[%clk 0:02:55.7]} 9. c4 {[%clk 0:02:44.8]} 9... Bc6 {[%clk
0:02:55.3]} 10. c3 {[%clk 0:02:39.5]} 10... Nbd7 {[%clk 0:02:55]} 11. Be2 {[%clk
0:02:35.8]} 11... h6 {[%clk 0:02:54.3]} 12. Be3 {[%clk 0:02:33.6]} 12... b6
{[%clk 0:02:48.4]} 13. O-O {[%clk 0:02:32.9]} 13... Bb7 {[%clk 0:02:48.6]} 14.
a4 {[%clk 0:02:28.4]} 14... a5 {[%clk 0:02:44.2]} 15. Rb1 {[%clk 0:02:25.2]}
15... Qe7 {[%clk 0:02:43.9]} 16. c5 {[%clk 0:02:22.3]} 16... Nd5 {[%clk
0:02:36.7]} 17. Rb3 {[%clk 0:02:16.5]} 17... Ba6 {[%clk 0:02:28.3]} 18. c6
{[%clk 0:02:11.4]} 18... N7f6 {[%clk 0:02:17.2]} 19. c4 {[%clk 0:02:01.9]} 19...
Nb4 {[%clk 0:02:05]} 20. Bf4 {[%clk 0:01:53.6]} 20... Nxc6 {[%clk 0:01:57.4]}
21. d5 {[%clk 0:01:51]} 21... Rfd8 {[%clk 0:01:55.1]} 22. Qc1 {[%clk 0:01:44.3]}
22... exd5 {[%clk 0:01:54.5]} 23. cxd5 {[%clk 0:01:43]} 23... Bxe2 {[%clk
0:01:48.3]} 24. Nxe2 {[%clk 0:01:39.8]} 24... Nb4 {[%clk 0:01:48.1]} 25. Bxh6
{[%clk 0:01:34.8]} 25... Nfxd5 {[%clk 0:01:43.9]} 26. Rg3 {[%clk 0:01:32.2]}
26... g6 {[%clk 0:01:29.7]} 27. Rh3 {[%clk 0:01:28.2]} 27... e3 {[%clk
0:01:20.5]} 28. fxe3 {[%clk 0:01:24.7]} 28... Qc5 {[%clk 0:01:08.6]} 29. Qb1
{[%clk 0:01:14.4]} 29... Qc2 {[%clk 0:01:04.3]} 30. Qa1 {[%clk 0:01:11.8]} 30...
f6 {[%clk 0:00:56.1]} 31. Rxf6 {[%clk 0:00:44.2]} 31... Nxf6 {[%clk 0:00:46.4]}
32. Qxf6 {[%clk 0:00:43.3]} 32... Qb1+ {[%clk 0:00:19.9]} 33. Kf2 {[%clk
0:00:42.5]} 33... Rf8 {[%clk 0:00:14.8]} 34. Bxf8 {[%clk 0:00:41.8]} 34... Nd3+
{[%clk 0:00:10.3]} 35. Kg3 {[%clk 0:00:37.2]} 35... Qe1+ {[%clk 0:00:10]} 36.
Kg4 {[%clk 0:00:35.7]} 36... Nf2+ {[%clk 0:00:09.1]} 37. Kg5 {[%clk 0:00:29.5]}
37... Ne4+ {[%clk 0:00:07.4]} 38. Kxg6 {[%clk 0:00:29.4]} 38... Nxf6 {[%clk
0:00:08.3]} 39. Bg7 {[%clk 0:00:27.6]} 39... Rf8 {[%clk 0:00:08.4]} 40. Rh8#
{[%clk 0:00:26.9]} 1-0

[Event "*** SCC Grand Prix: Titled Tuesday Blitz"]
[Site "Chess.com"]
[Date "2020.07.14"]
[Round "7"]
[White "SamuelGhimpu2003"]
[Black "Slovak_fighter2000"]
[Result "1-0"]
[WhiteElo "2603"]
[BlackElo "2443"]
[TimeControl "180+1"]
[EndTime "11:19:51 PDT"]
[Termination "SamuelGhimpu2003 won on time"]

1. d4 {[%clk 0:02:53.6]} 1... Nf6 {[%clk 0:02:58.7]} 2. c4 {[%clk 0:02:52.4]}
2... g6 {[%clk 0:02:56.9]} 3. Nc3 {[%clk 0:02:52.2]} 3... Bg7 {[%clk 0:02:56]}
4. e4 {[%clk 0:02:51.9]} 4... d6 {[%clk 0:02:55.9]} 5. Nf3 {[%clk 0:02:52.3]}
5... O-O {[%clk 0:02:55.2]} 6. h3 {[%clk 0:02:53.2]} 6... e5 {[%clk 0:02:45.4]}
7. d5 {[%clk 0:02:47.4]} 7... Nh5 {[%clk 0:02:38.3]} 8. g3 {[%clk 0:02:44.9]}
8... a5 {[%clk 0:02:32.8]} 9. Be3 {[%clk 0:02:40.1]} 9... Na6 {[%clk 0:02:32.5]}
10. Be2 {[%clk 0:02:36.7]} 10... Nc5 {[%clk 0:02:25.8]} 11. Nd2 {[%clk
0:02:30.6]} 11... Nf6 {[%clk 0:02:24.4]} 12. Qc2 {[%clk 0:02:30.8]} 12... Bd7
{[%clk 0:02:22.7]} 13. O-O-O {[%clk 0:02:29.6]} 13... c6 {[%clk 0:02:14.6]} 14.
Kb1 {[%clk 0:02:29]} 14... cxd5 {[%clk 0:02:14.2]} 15. cxd5 {[%clk 0:02:29.9]}
15... Rb8 {[%clk 0:01:58.3]} 16. Bb5 {[%clk 0:02:21.8]} 16... Qe8 {[%clk
0:01:53.2]} 17. a4 {[%clk 0:02:16.7]} 17... Na6 {[%clk 0:01:49.4]} 18. Nc4
{[%clk 0:02:13.5]} 18... Nb4 {[%clk 0:01:43.8]} 19. Qb3 {[%clk 0:02:05.7]} 19...
Bxb5 {[%clk 0:01:38.1]} 20. Nxd6 {[%clk 0:02:05]} 20... Bxa4 {[%clk 0:01:33]}
21. Nxa4 {[%clk 0:01:58.5]} 21... Qd7 {[%clk 0:01:25.4]} 22. Bc5 {[%clk
0:01:48.6]} 22... b6 {[%clk 0:01:21.7]} 23. Bxb4 {[%clk 0:01:39]} 23... axb4
{[%clk 0:01:22.6]} 24. Qxb4 {[%clk 0:01:39.9]} 24... Rfd8 {[%clk 0:01:09.3]} 25.
Nc4 {[%clk 0:01:13.8]} 25... Nxe4 {[%clk 0:01:04.9]} 26. Ncxb6 {[%clk
0:01:10.7]} 26... Qf5 {[%clk 0:00:58.8]} 27. g4 {[%clk 0:01:11]} 27... Qf3
{[%clk 0:00:48.3]} 28. Rhe1 {[%clk 0:00:42.2]} 28... Nxf2 {[%clk 0:00:45]} 29.
Rf1 {[%clk 0:00:42.6]} 29... Qg3 {[%clk 0:00:32.7]} 30. Qe1 {[%clk 0:00:31.1]}
30... Qxh3 {[%clk 0:00:07.7]} 31. Qxf2 {[%clk 0:00:29.5]} 31... Rb7 {[%clk
0:00:05.2]} 32. Nc5 {[%clk 0:00:24.6]} 32... Ra7 {[%clk 0:00:04]} 33. d6 {[%clk
0:00:19.9]} 33... Qxg4 {[%clk 0:00:03.6]} 34. d7 {[%clk 0:00:20.2]} 34... f5
{[%clk 0:00:02.6]} 35. Qd2 {[%clk 0:00:18.8]} 1-0

[Event "*** SCC Grand Prix: Titled Tuesday Blitz"]
[Site "Chess.com"]
[Date "2020.07.14"]
[Round "7"]
[White "louis198"]
[Black "sewin16"]
[Result "1-0"]
[WhiteElo "2559"]
[BlackElo "2392"]
[TimeControl "180+1"]
[EndTime "11:19:51 PDT"]
[Termination "louis198 won by resignation"]

1. d4 {[%clk 0:03:00.9]} 1... Nf6 {[%clk 0:02:58.4]} 2. Bf4 {[%clk 0:02:58.2]}
2... e6 {[%clk 0:02:58]} 3. e3 {[%clk 0:02:57.9]} 3... d5 {[%clk 0:02:58.5]} 4.
Nf3 {[%clk 0:02:57.8]} 4... Bd6 {[%clk 0:02:59.1]} 5. Bg3 {[%clk 0:02:56.5]}
5... c5 {[%clk 0:02:59.2]} 6. c3 {[%clk 0:02:56.1]} 6... Qc7 {[%clk 0:02:59.1]}
7. Nbd2 {[%clk 0:02:54]} 7... Nbd7 {[%clk 0:02:58.9]} 8. Bd3 {[%clk 0:02:49.4]}
8... O-O {[%clk 0:02:58.2]} 9. e4 {[%clk 0:02:24.9]} 9... dxe4 {[%clk
0:02:50.1]} 10. Nxe4 {[%clk 0:02:23]} 10... Nxe4 {[%clk 0:02:48.4]} 11. Bxe4
{[%clk 0:02:21.4]} 11... Nf6 {[%clk 0:02:47.5]} 12. Bc2 {[%clk 0:02:21.2]} 12...
Rd8 {[%clk 0:02:35]} 13. Qe2 {[%clk 0:01:57.6]} 13... Bxg3 {[%clk 0:02:04.6]}
14. hxg3 {[%clk 0:01:56.3]} 14... b6 {[%clk 0:01:58.4]} 15. Qe5 {[%clk
0:01:48.6]} 15... Qe7 {[%clk 0:01:23.5]} 16. Bxh7+ {[%clk 0:01:38.4]} 16... Nxh7
{[%clk 0:01:11.7]} 17. Qh5 {[%clk 0:01:38]} 17... Qf6 {[%clk 0:00:49.4]} 18.
Qxh7+ {[%clk 0:01:37.1]} 18... Kf8 {[%clk 0:00:49.8]} 19. Qe4 {[%clk 0:01:35.5]}
19... Ba6 {[%clk 0:00:45.1]} 20. O-O-O {[%clk 0:01:28.3]} 20... g6 {[%clk
0:00:39.2]} 21. Ne5 {[%clk 0:01:20.5]} 21... Kg7 {[%clk 0:00:38.2]} 22. Rh4
{[%clk 0:01:16.1]} 22... Qf5 {[%clk 0:00:34.1]} 23. Qe3 {[%clk 0:01:11.7]} 23...
cxd4 {[%clk 0:00:33.4]} 24. Qh6+ {[%clk 0:01:04.3]} 24... Kf6 {[%clk 0:00:33.2]}
25. Rf4 {[%clk 0:01:03.8]} 25... Kxe5 {[%clk 0:00:23.6]} 26. Rxf5+ {[%clk
0:01:03.7]} 26... exf5 {[%clk 0:00:23.1]} 27. Qg7+ {[%clk 0:01:01.2]} 27... Ke6
{[%clk 0:00:22.5]} 28. Re1+ {[%clk 0:01:00.5]} 28... Kd6 {[%clk 0:00:20.9]} 29.
Qxd4+ {[%clk 0:00:58.9]} 29... Kc6 {[%clk 0:00:20.7]} 30. Qf6+ {[%clk
0:00:55.4]} 30... Rd6 {[%clk 0:00:18.6]} 31. Qxf7 {[%clk 0:00:54.3]} 31... Rad8
{[%clk 0:00:16.3]} 32. Qxa7 {[%clk 0:00:43.2]} 32... Bb7 {[%clk 0:00:12.6]} 33.
Qa4+ {[%clk 0:00:42.5]} 33... Kc7 {[%clk 0:00:12.8]} 34. Re7+ {[%clk 0:00:40.9]}
34... R8d7 {[%clk 0:00:12.2]} 35. Qc4+ {[%clk 0:00:40.4]} 35... Kb8 {[%clk
0:00:10.7]} 36. Re8+ {[%clk 0:00:35.7]} 36... Ka7 {[%clk 0:00:11]} 37. Qa4+
{[%clk 0:00:32.8]} 37... Ba6 {[%clk 0:00:11.2]} 38. Re6 {[%clk 0:00:29.6]} 38...
Rd2 {[%clk 0:00:08.5]} 39. Rxg6 {[%clk 0:00:25.1]} 39... Kb7 {[%clk 0:00:08.6]}
40. Qc6+ {[%clk 0:00:24.3]} 40... Ka7 {[%clk 0:00:08.6]} 41. Qxb6+ {[%clk
0:00:24.5]} 1-0

[Event "*** SCC Grand Prix: Titled Tuesday Blitz"]
[Site "Chess.com"]
[Date "2020.07.14"]
[Round "7"]
[White "Zq1"]
[Black "Olga_Zhuravleva"]
[Result "1-0"]
[WhiteElo "2478"]
[BlackElo "2308"]
[TimeControl "180+1"]
[EndTime "11:19:51 PDT"]
[Termination "Zq1 won by resignation"]

1. d4 {[%clk 0:03:00.9]} 1... Nf6 {[%clk 0:02:55.1]} 2. c4 {[%clk 0:03:00.7]}
2... e6 {[%clk 0:02:54.4]} 3. Nc3 {[%clk 0:03:00]} 3... Bb4 {[%clk 0:02:51.1]}
4. e3 {[%clk 0:03:00]} 4... b6 {[%clk 0:02:46.7]} 5. Bd3 {[%clk 0:02:59.5]} 5...
O-O {[%clk 0:02:39.8]} 6. Ne2 {[%clk 0:02:58.7]} 6... Bb7 {[%clk 0:02:37.3]} 7.
O-O {[%clk 0:02:58.4]} 7... Be7 {[%clk 0:02:34.1]} 8. e4 {[%clk 0:02:56.1]} 8...
d6 {[%clk 0:02:33.1]} 9. f4 {[%clk 0:02:52.7]} 9... c5 {[%clk 0:02:33.2]} 10. d5
{[%clk 0:02:52]} 10... exd5 {[%clk 0:02:32.1]} 11. cxd5 {[%clk 0:02:51.6]} 11...
Re8 {[%clk 0:02:32.1]} 12. Ng3 {[%clk 0:02:46.6]} 12... Bf8 {[%clk 0:02:32.3]}
13. a4 {[%clk 0:02:44.8]} 13... a6 {[%clk 0:02:31.7]} 14. Qf3 {[%clk 0:02:37.5]}
14... Nbd7 {[%clk 0:02:31.5]} 15. Bd2 {[%clk 0:02:31.5]} 15... Qc7 {[%clk
0:02:31.8]} 16. Kh1 {[%clk 0:02:24.4]} 16... c4 {[%clk 0:02:21]} 17. Bc2 {[%clk
0:02:23.6]} 17... Nc5 {[%clk 0:02:21.3]} 18. Rae1 {[%clk 0:02:11.5]} 18... b5
{[%clk 0:01:58.6]} 19. axb5 {[%clk 0:02:10.7]} 19... axb5 {[%clk 0:01:58.2]} 20.
Nf5 {[%clk 0:01:54.6]} 20... b4 {[%clk 0:01:49.1]} 21. Nb5 {[%clk 0:01:52.6]}
21... Qb6 {[%clk 0:01:47]} 22. Nbd4 {[%clk 0:01:52.5]} 22... Ra2 {[%clk
0:01:38.3]} 23. Bc1 {[%clk 0:01:44.9]} 23... g6 {[%clk 0:01:18.6]} 24. Ng3
{[%clk 0:01:26.9]} 24... Ra1 {[%clk 0:00:46]} 25. f5 {[%clk 0:01:18.9]} 25...
Bg7 {[%clk 0:00:40.4]} 26. Bg5 {[%clk 0:01:12.7]} 26... Rxe1 {[%clk 0:00:36.7]}
27. Rxe1 {[%clk 0:01:12.2]} 27... Nd3 {[%clk 0:00:20.1]} 28. Bxd3 {[%clk
0:01:02.3]} 28... Qxd4 {[%clk 0:00:20.6]} 29. Bb1 {[%clk 0:00:55.8]} 29... Nxd5
{[%clk 0:00:20.5]} 30. Rd1 {[%clk 0:00:48.4]} 30... Qxb2 {[%clk 0:00:19]} 31.
exd5 {[%clk 0:00:46.1]} 31... c3 {[%clk 0:00:19.2]} 32. f6 {[%clk 0:00:23.8]}
32... c2 {[%clk 0:00:17.4]} 33. Bxc2 {[%clk 0:00:21.3]} 33... Qxc2 {[%clk
0:00:16.8]} 34. fxg7 {[%clk 0:00:18.7]} 34... b3 {[%clk 0:00:16.5]} 35. Rf1
{[%clk 0:00:15.7]} 35... f5 {[%clk 0:00:10.4]} 36. Bf6 {[%clk 0:00:14.7]} 36...
b2 {[%clk 0:00:09.4]} 37. Bxb2 {[%clk 0:00:14.6]} 37... Qxb2 {[%clk 0:00:09.5]}
38. Nxf5 {[%clk 0:00:14.8]} 38... Qf6 {[%clk 0:00:08.1]} 39. Nh6+ {[%clk
0:00:14.3]} 1-0